[Event "Asian Continental-ch Open 2019"]
[Site "XingTai"]
[Date "2019.06.12"]
[Round "6.8"]
[White "Zeng, Chongsheng"]
[Black "Vidit, Santosh Gujrathi"]
[Result "0-1"]
[ECO "C58"]
[WhiteElo "2561"]
[BlackElo "2707"]
[Annotator "RC"]
[PlyCount "124"]
[EventDate "2019.06.06"]
[EventType "swiss"]
[EventCountry "CHN"]
[SourceTitle "playchess.com"]
[Source "ChessBase"]
[SourceQuality "1"]
[TimeControl "40/5400+30:1800+30"]

1. e4 {[%emt 0:00:00]} e5 {[%emt 0:00:47]} 2. Nf3 {[%emt 0:00:00]} Nc6 {[%emt 0:00:11]} 3. Bc4 {[%emt 0:00:02]} Nf6 {[%emt 0:00:18]} 4. Ng5 {[%emt 0:03:11]} d5 {[%emt 0:00:15]} 5. exd5 {[%emt 0:00:03]} Na5 {[%emt 0:00:11]} 6. d3 {[%emt 0:00:04]} h6 {[%emt 0:00:33]} 7. Nf3 {[%emt 0:00:02]} e4 {[%emt 0:00:19]} 8. Qe2 {[%emt 0:00:05]} Nxc4 {[%emt 0:00:41]} 9. dxc4 {[%emt 0:00:02]} Bc5 {[%emt 0:00:18]} 10. Nfd2 {[%emt 0:00:02]} O-O {[%emt 0:00:50]} 11. Nb3 {[%emt 0:00:11]} Bg4 {[%emt 0:00:47]} 12. Qf1 {[%emt 0:01:09]} Bb4+ {[%emt 0:06:36]} 13. c3 {[%emt 0:00:12]} Be7 {[%emt 0:01:05]} 14. h3 {[%emt 0:00:35]} Bh5 {[%emt 0:00:18]} 15. Be3 {[%emt 0:07:15]} Nd7 {[%emt 0:02:19]} 16. g4 {[%emt 0:03:28]} Bg6 {[%emt 0:00:08]} 17. N1d2 {[%emt 0:00:57]} Ne5 {[%emt 0:00:37]} 18. O-O-O {[%emt 0:00:13]} Nd3+ {[%emt 0:06:12]} 19. Kb1 {[%emt 0:00:04]} b5 {[%emt 0:00:13]} 20. Nd4 {[%emt 0:16:31]} bxc4 {[%emt 0:00:40]} 21. Nc6 {[%emt 0:00:02]} Qd7 {[%emt 0:00:48]} 22. Nxc4 {[%emt 0:00:22]} Bf6 {[%emt 0:02:40]} 23. f4 {[%emt 0:01:57]} exf3 {[%emt 0:20:51]} 24. Rxd3 {[%emt 0:05:14]} Qxd5 {[%emt 0:15:10]} 25. N4e5 {[%emt 0:00:13]} Be4 {[%emt 0:03:58]} 26. Ka1 {[%emt 0:02:42]} Qe6 {[%emt 0:01:03]} 27. Bf4 {[%emt 0:03:19]} Bxd3 {[%emt 0:03:38]} 28. Qxd3 {[%emt 0:02:50]} Bxe5 {[%emt 0:00:10]} 29. Nxe5 {[%emt 0:00:47]} f5 {[%emt 0:00:06]} 30. Qxf3 {[%emt 0:08:51]} fxg4 {[%emt 0:05:19]} 31. Qg3 {[%emt 0:02:14]} Rae8 {[%emt 0:03:37]} 32. Nxg4 {[%emt 0:07:18]} h5 {[%emt 0:06:22]} 33. Ne5 {[%emt 0:21:44]} Rxf4 {[%emt 0:00:27]} 34. Qxf4 {[%emt 0:00:06]} Qxe5 {[%emt 0:00:05]} 35. Qf1 {[%emt 0:01:11]} Qe2 {[%emt 0:01:17]} 36. Qc1 {[%emt 0:01:38]} a5 {[%emt 0:06:51]} 37. a3 {[%emt 0:00:40]} a4 {[%emt 0:01:49]} 38. Qf4 {[%emt 0:01:07]} Qe4 {[%emt 0:01:26]} 39. Rf1 {[%emt 0:01:34]} Re7 {[%emt 0:02:28]} 40. Qg5 {[%emt 0:00:00]} h4 {[%emt 0:00:00]} 41. Rd1 {[%emt 0:09:31]} Rf7 {[%emt 0:16:18]} 42. Qc5 {[%emt 0:02:14]} Kh7 {[%emt 0:05:25]} 43. Ka2 {[%emt 0:08:03]} Qe6+ {[%emt 0:01:26]} 44. c4 {[%emt 0:00:18]} Qf5 {[%emt 0:02:48]} 45. Qb5 {[%emt 0:15:40]} Qxb5 {[%emt 0:02:18]} 46. cxb5 {[%emt 0:00:01]} g5 {[%emt 0:04:54]} 47. Rd4 {[%emt 0:02:39]} Rf3 {[%emt 0:03:29]} 48. Rxa4 {[%emt 0:01:53]} Rxh3 {[%emt 0:00:02]} 49. Rc4 {[%emt 0:00:21]} Rd3 {[%emt 0:00:29]} 50. Rxc7+ {[%emt 0:00:05]} Kg6 {[%emt 0:00:04]} 51. b6 {[%emt 0:05:24]} Rd8 {[%emt 0:00:14]} 52. a4 {[%emt 0:01:24]} h3 {[%emt 0:00:13]} 53. a5 {[%emt 0:00:03]} h2 {[%emt 0:01:57]} 54. Rc1 {[%emt 0:00:03]} g4 {[%emt 0:00:49]} 55. b7 {[%emt 0:00:31]} g3 {[%emt 0:00:07]} 56. a6 {[%emt 0:00:26]} g2 {[%emt 0:00:11]} 57. a7 {[%emt 0:00:21]} h1=Q {[%emt 0:01:14]} 58. Rc6+ {[%emt 0:00:37]} Kf5 {[%emt 0:02:25]} 59. b8=Q {[%emt 0:01:01]} g1=Q {[%emt 0:00:38]} 60. Rf6+ {[%emt 0:00:18]} Kxf6 {[%emt 0:01:07]} 61. Qxd8+ {[%emt 0:00:06]} Kg7 {[%emt 0:00:30]} 62. Qe7+ {[%emt 0:01:22]} Kh8 {[%emt 0:00:34]} 0-1

[Event "Asian Continental-ch Open 2019"]
[Site "XingTai"]
[Date "2019.06.12"]
[Round "6.12"]
[White "Wan, Yunguo"]
[Black "Vaibhav, Suri"]
[Result "0-1"]
[ECO "C11"]
[WhiteElo "2531"]
[BlackElo "2599"]
[Annotator "ChessBase"]
[PlyCount "70"]
[EventDate "2019.06.06"]
[EventType "swiss"]
[EventCountry "CHN"]
[SourceTitle "playchess.com"]
[Source "ChessBase"]
[SourceQuality "1"]
[TimeControl "40/5400+30:1800+30"]

1. e4 {[%emt 0:00:00]} e6 {[%emt 0:00:01]} 2. d4 {[%emt 0:00:14]} d5 {[%emt 0:00:07]} 3. Nc3 {[%emt 0:00:05]} Nf6 {[%emt 0:00:20]} 4. e5 {[%emt 0:02:12]} Nfd7 {[%emt 0:00:07]} 5. f4 {[%emt 0:00:07]} c5 {[%emt 0:00:04]} 6. Nf3 {[%emt 0:00:06]} Nc6 {[%emt 0:00:12]} 7. Be3 {[%emt 0:00:08]} Be7 {[%emt 0:00:04]} 8. Qd2 {[%emt 0:02:00]} O-O {[%emt 0:00:16]} 9. dxc5 {[%emt 0:04:18]} Qa5 {[%emt 0:00:53]} 10. O-O-O {[%emt 0:02:35]} b6 {[%emt 0:01:06]} 11. Bb5 {[%emt 0:10:47]} Nb4 {[%emt 0:00:24]} 12. a3 {[%emt 0:07:07]} bxc5 {[%emt 0:00:03]} 13. Bxd7 {[%emt 0:03:58]} Bxd7 {[%emt 0:00:07]} 14. axb4 {[%emt 0:00:06]} cxb4 {[%emt 0:00:05]} 15. Nb1 {[%emt 0:00:05]} Rfc8 {[%emt 0:00:45]} 16. Nd4 {[%emt 0:07:05]} Qa2 {[%emt 0:01:05]} 17. Qd3 {[%emt 0:08:34]} a5 {[%emt 0:04:51]} 18. Nb5 {[%emt 0:06:49]} Bxb5 {[%emt 0:28:04]} 19. Qxb5 {[%emt 0:00:16]} a4 {[%emt 0:00:14]} 20. Bd4 {[%emt 0:12:29]} Rc4 {[%emt 0:14:49]} 21. Rd2 {[%emt 0:04:36]} Rac8 {[%emt 0:17:23]} 22. Rf1 {[%emt 0:12:07]} a3 {[%emt 0:02:23]} 23. Qb7 {[%emt 0:09:00]} Bf8 {[%emt 0:11:15]} 24. c3 {[%emt 0:01:29]} Qa1 {[%emt 0:00:48]} 25. bxa3 {[%emt 0:03:53]} bxc3 {[%emt 0:05:16]} 26. Rc2 {[%emt 0:00:33]} Bxa3+ {[%emt 0:03:50]} 27. Kd1 {[%emt 0:00:05]} Bb2 {[%emt 0:01:17]} 28. Ke2 {[%emt 0:01:08]} Qa4 {[%emt 0:00:02]} 29. Rxc3 {[%emt 0:01:41]} Bxc3 {[%emt 0:00:31]} 30. Bxc3 {[%emt 0:00:08]} Rxc3 {[%emt 0:02:53]} 31. Nxc3 {[%emt 0:00:06]} Qc2+ {[%emt 0:00:02]} 32. Ke1 {[%emt 0:00:19]} Rxc3 {[%emt 0:00:46]} 33. Qb8+ {[%emt 0:01:00]} Rc8 {[%emt 0:00:02]} 34. Qb4 {[%emt 0:00:08]} Ra8 {[%emt 0:01:16]} 35. Qd4 {[%emt 0:01:25]} Ra2 {[%emt 0:00:28]} 0-1

[Event "Asian Continental-ch Open 2019"]
[Site "XingTai"]
[Date "2019.06.12"]
[Round "6.13"]
[White "Vishnu Prasanna. V"]
[Black "Idani, Pouya"]
[Result "0-1"]
[ECO "A01"]
[WhiteElo "2511"]
[BlackElo "2597"]
[Annotator "ChessBase"]
[PlyCount "50"]
[EventDate "2019.06.06"]
[EventType "swiss"]
[EventCountry "CHN"]
[SourceTitle "playchess.com"]
[Source "ChessBase"]
[SourceQuality "1"]
[TimeControl "40/5400+30:1800+30"]

1. c4 {[%emt 0:00:00]} f5 {[%emt 0:00:00]} 2. b3 {[%emt 0:00:00]} e5 {[%emt 0:01:37]} 3. Bb2 {[%emt 0:00:19]} Nc6 {[%emt 0:00:30]} 4. e3 {[%emt 0:00:20]} Nf6 {[%emt 0:01:05]} 5. Nc3 {[%emt 0:00:53]} Be7 {[%emt 0:05:05]} 6. Nd5 {[%emt 0:02:18]} O-O {[%emt 0:00:15]} 7. a3 {[%emt 0:04:05]} d6 {[%emt 0:01:07]} 8. Nxe7+ {[%emt 0:04:25]} Qxe7 {[%emt 0:00:23]} 9. b4 {[%emt 0:06:54]} f4 {[%emt 0:02:26]} 10. Be2 {[%emt 0:04:50]} Qf7 {[%emt 0:09:45]} 11. Nf3 {[%emt 0:06:08]} fxe3 {[%emt 0:06:27]} 12. dxe3 {[%emt 0:03:41]} Qg6 {[%emt 0:04:02]} 13. b5 {[%emt 0:12:08]} Ne7 {[%emt 0:01:18]} 14. c5 {[%emt 0:05:55]} Ne4 {[%emt 0:03:13]} 15. cxd6 {[%emt 0:06:53]} Qxg2 {[%emt 0:13:20]} 16. Qb3+ {[%emt 0:05:53]} Kh8 {[%emt 0:00:14]} 17. dxe7 {[%emt 0:06:57]} Qxh1+ {[%emt 0:01:45]} 18. Bf1 {[%emt 0:00:09]} Be6 {[%emt 0:01:25]} 19. exf8=Q+ {[%emt 0:13:09]} Rxf8 {[%emt 0:00:05]} 20. Qc2 {[%emt 0:02:50]} Qxf3 {[%emt 0:00:20]} 21. Bxe5 {[%emt 0:00:11]} Nxf2 {[%emt 0:05:51]} 22. Bd4 {[%emt 0:00:35]} Qg4 {[%emt 0:12:18]} 23. Be5 {[%emt 0:06:41]} Ne4 {[%emt 0:02:24]} 24. Bf4 {[%emt 0:03:34]} Qh4+ {[%emt 0:00:25]} 25. Kd1 {[%emt 0:00:30]} Qf6 {[%emt 0:01:04]} 0-1

[Event "Asian Continental-ch Open 2019"]
[Site "XingTai"]
[Date "2019.06.12"]
[Round "6.14"]
[White "Zou, Chen"]
[Black "Yakubboev, Nodirbek"]
[Result "0-1"]
[ECO "A80"]
[WhiteElo "2415"]
[BlackElo "2587"]
[Annotator "ChessBase"]
[PlyCount "56"]
[EventDate "2019.06.06"]
[EventType "swiss"]
[EventCountry "CHN"]
[SourceTitle "playchess.com"]
[Source "ChessBase"]
[SourceQuality "1"]
[TimeControl "40/5400+30:1800+30"]

1. d4 {[%emt 0:00:00]} f5 {[%emt 0:03:10]} 2. Bg5 {[%emt 0:07:38]} h6 {[%emt 0:07:46]} 3. Bh4 {[%emt 0:00:27]} g5 {[%emt 0:00:05]} 4. e3 {[%emt 0:00:17]} Nf6 {[%emt 0:00:07]} 5. Bg3 {[%emt 0:00:05]} d6 {[%emt 0:00:03]} 6. Nd2 {[%emt 0:02:36]} Nc6 {[%emt 0:05:15]} 7. h4 {[%emt 0:11:48]} g4 {[%emt 0:02:04]} 8. Bb5 {[%emt 0:03:01]} a6 {[%emt 0:03:15]} 9. Ba4 {[%emt 0:03:04]} b5 {[%emt 0:07:49]} 10. Bb3 {[%emt 0:00:31]} Na5 {[%emt 0:00:05]} 11. Ne2 {[%emt 0:04:35]} Nxb3 {[%emt 0:10:55]} 12. Nxb3 {[%emt 0:02:02]} Bg7 {[%emt 0:09:34]} 13. Qd3 {[%emt 0:07:54]} O-O {[%emt 0:02:48]} 14. O-O-O {[%emt 0:02:14]} a5 {[%emt 0:06:15]} 15. d5 {[%emt 0:05:00]} Qe8 {[%emt 0:07:55]} 16. Nf4 {[%emt 0:01:59]} Qf7 {[%emt 0:03:33]} 17. Nd2 {[%emt 0:15:49]} b4 {[%emt 0:06:57]} 18. f3 {[%emt 0:03:43]} c6 {[%emt 0:06:41]} 19. e4 {[%emt 0:06:28]} fxe4 {[%emt 0:01:34]} 20. fxe4 {[%emt 0:00:31]} Ba6 {[%emt 0:00:28]} 21. Nc4 {[%emt 0:01:34]} cxd5 {[%emt 0:01:27]} 22. exd5 {[%emt 0:02:23]} Rfc8 {[%emt 0:00:45]} 23. b3 {[%emt 0:00:02]} a4 {[%emt 0:00:21]} 24. Qe2 {[%emt 0:13:49]} axb3 {[%emt 0:00:31]} 25. cxb3 {[%emt 0:00:16]} Bxc4 {[%emt 0:01:57]} 26. bxc4 {[%emt 0:00:01]} b3 {[%emt 0:01:24]} 27. Qd3 {[%emt 0:03:29]} bxa2 {[%emt 0:01:59]} 28. Kd2 {[%emt 0:01:24]} Nd7 {[%emt 0:01:28]} 0-1

[Event "Asian Continental-ch Open 2019"]
[Site "XingTai"]
[Date "2019.06.12"]
[Round "6.16"]
[White "Aryan Chopra"]
[Black "Ma, Zhonghan"]
[Result "1-0"]
[ECO "B90"]
[WhiteElo "2553"]
[BlackElo "2488"]
[Annotator "ChessBase"]
[PlyCount "47"]
[EventDate "2019.06.06"]
[EventType "swiss"]
[EventCountry "CHN"]
[SourceTitle "playchess.com"]
[Source "ChessBase"]
[SourceQuality "1"]
[TimeControl "40/5400+30:1800+30"]

1. e4 {[%emt 0:00:00]} c5 {[%emt 0:00:00]} 2. Nf3 {[%emt 0:00:00]} d6 {[%emt 0:00:00]} 3. d4 {[%emt 0:00:00]} cxd4 {[%emt 0:00:00]} 4. Nxd4 {[%emt 0:00:00]} Nf6 {[%emt 0:00:00]} 5. Nc3 {[%emt 0:00:00]} a6 {[%emt 0:00:00]} 6. h4 {[%emt 0:00:40]} e5 {[%emt 0:13:39]} 7. Nb3 {[%emt 0:00:07]} Be6 {[%emt 0:00:04]} 8. f4 {[%emt 0:02:51]} exf4 {[%emt 0:10:23]} 9. Bxf4 {[%emt 0:00:12]} Nc6 {[%emt 0:00:02]} 10. h5 {[%emt 0:13:45]} h6 {[%emt 0:18:33]} 11. Qd2 {[%emt 0:14:26]} d5 {[%emt 0:04:21]} 12. O-O-O {[%emt 0:11:36]} Nxe4 {[%emt 0:14:48]} 13. Nxe4 {[%emt 0:00:15]} dxe4 {[%emt 0:00:02]} 14. Qe3 {[%emt 0:02:07]} Qc8 {[%emt 0:05:01]} 15. Qxe4 {[%emt 0:05:15]} Be7 {[%emt 0:00:01]} 16. Bd3 {[%emt 0:04:42]} Nb4 {[%emt 0:01:32]} 17. Nd4 {[%emt 0:02:22]} Nxa2+ {[%emt 0:10:14]} 18. Kb1 {[%emt 0:00:10]} Nb4 {[%emt 0:00:01]} 19. Nxe6 {[%emt 0:02:12]} Qxe6 {[%emt 0:00:33]} 20. Qxe6 {[%emt 0:00:09]} fxe6 {[%emt 0:00:01]} 21. Bg6+ {[%emt 0:00:11]} Kf8 {[%emt 0:00:05]} 22. Rhf1 {[%emt 0:08:20]} Nd5 {[%emt 0:01:31]} 23. Rxd5 {[%emt 0:00:23]} exd5 {[%emt 0:20:39]} 24. Bd6+ {[%emt 0:00:05]} 1-0

[Event "Asian Continental-ch Open 2019"]
[Site "XingTai"]
[Date "2019.06.12"]
[Round "6.17"]
[White "Xu, Yi"]
[Black "Laylo, Darwin"]
[Result "1/2-1/2"]
[ECO "B01"]
[WhiteElo "2526"]
[BlackElo "2433"]
[Annotator "ChessBase"]
[PlyCount "88"]
[EventDate "2019.06.06"]
[EventType "swiss"]
[EventCountry "CHN"]
[SourceTitle "playchess.com"]
[Source "ChessBase"]
[SourceQuality "1"]
[TimeControl "40/5400+30:1800+30"]

1. e4 {[%emt 0:00:00]} d5 {[%emt 0:00:00]} 2. exd5 {[%emt 0:00:00]} Qxd5 {[%emt 0:00:00]} 3. Nc3 {[%emt 0:00:00]} Qd6 {[%emt 0:00:00]} 4. d4 {[%emt 0:00:00]} Nf6 {[%emt 0:00:01]} 5. Nf3 {[%emt 0:00:04]} a6 {[%emt 0:00:18]} 6. g3 {[%emt 0:00:25]} Bg4 {[%emt 0:00:08]} 7. h3 {[%emt 0:01:22]} Bh5 {[%emt 0:00:48]} 8. Bg2 {[%emt 0:00:42]} Nc6 {[%emt 0:00:26]} 9. O-O {[%emt 0:03:36]} O-O-O {[%emt 0:01:31]} 10. Bf4 {[%emt 0:03:06]} Qb4 {[%emt 0:07:21]} 11. g4 {[%emt 0:08:03]} Bg6 {[%emt 0:01:47]} 12. a3 {[%emt 0:01:54]} Qxb2 {[%emt 0:04:13]} 13. Qe1 {[%emt 0:08:11]} e6 {[%emt 0:07:22]} 14. Ne5 {[%emt 0:01:50]} Nd5 {[%emt 0:00:57]} 15. Nxd5 {[%emt 0:00:59]} exd5 {[%emt 0:00:02]} 16. Nxc6 {[%emt 0:00:12]} bxc6 {[%emt 0:00:02]} 17. Bg5 {[%emt 0:00:45]} f6 {[%emt 0:16:30]} 18. Qe6+ {[%emt 0:04:40]} Rd7 {[%emt 0:01:19]} 19. Rab1 {[%emt 0:02:31]} Qxc2 {[%emt 0:00:57]} 20. Bf4 {[%emt 0:16:29]} Bd6 {[%emt 0:05:33]} 21. Bxd6 {[%emt 0:03:27]} Re8 {[%emt 0:00:07]} 22. Rb8+ {[%emt 0:02:30]} Kxb8 {[%emt 0:00:02]} 23. Qxd7 {[%emt 0:00:18]} cxd6 {[%emt 0:00:14]} 24. h4 {[%emt 0:03:55]} Re2 {[%emt 0:05:38]} 25. Bf3 {[%emt 0:03:43]} Rd2 {[%emt 0:11:47]} 26. Re1 {[%emt 0:03:55]} Be4 {[%emt 0:00:13]} 27. Qxd6+ {[%emt 0:01:00]} Kb7 {[%emt 0:00:23]} 28. Qb4+ {[%emt 0:01:15]} Ka7 {[%emt 0:01:57]} 29. Qe7+ {[%emt 0:01:57]} Kb6 {[%emt 0:03:16]} 30. Qb4+ {[%emt 0:08:04]} Ka7 {[%emt 0:00:09]} 31. a4 {[%emt 0:15:45]} Qb2 {[%emt 0:17:10]} 32. Qe7+ {[%emt 0:01:25]} Qb7 {[%emt 0:00:41]} 33. Qc5+ {[%emt 0:00:44]} Qb6 {[%emt 0:01:24]} 34. Qe7+ {[%emt 0:00:08]} Qb7 {[%emt 0:00:05]} 35. Qc5+ {[%emt 0:00:13]} Qb6 {[%emt 0:00:18]} 36. Bxe4 {[%emt 0:03:57]} Qxc5 {[%emt 0:00:10]} 37. dxc5 {[%emt 0:00:08]} dxe4 {[%emt 0:00:02]} 38. Rxe4 {[%emt 0:00:08]} Rd7 {[%emt 0:00:26]} 39. Kg2 {[%emt 0:01:32]} Kb7 {[%emt 0:01:51]} 40. Kg3 {[%emt 0:00:00]} Kc7 {[%emt 0:00:00]} 41. f3 {[%emt 0:05:14]} Rd5 {[%emt 0:01:48]} 42. Re7+ {[%emt 0:00:13]} Rd7 {[%emt 0:00:05]} 43. Re8 {[%emt 0:00:22]} Rd8 {[%emt 0:00:03]} 44. Re1 {[%emt 0:10:47]} Rd5 {[%emt 0:00:08]} 1/2-1/2

[Event "Asian Continental-ch Open 2019"]
[Site "XingTai"]
[Date "2019.06.13"]
[Round "7.11"]
[White "Chanda, Sandipan"]
[Black "Aravindh, Chithambaram VR."]
[Result "1/2-1/2"]
[ECO "B07"]
[WhiteElo "2511"]
[BlackElo "2598"]
[Annotator "ChessBase"]
[PlyCount "300"]
[EventDate "2019.06.06"]
[EventType "swiss"]
[EventCountry "CHN"]
[SourceTitle "playchess.com"]
[Source "ChessBase"]
[SourceQuality "1"]
[TimeControl "40/5400+30:1800+30"]

1. d4 {[%emt 0:00:00]} Nf6 {[%emt 0:00:00]} 2. Nf3 {[%emt 0:00:00]} g6 {[%emt 0:00:00]} 3. Nbd2 {[%emt 0:00:00]} Bg7 {[%emt 0:00:03]} 4. e4 {[%emt 0:00:02]} d6 {[%emt 0:00:07]} 5. Be2 {[%emt 0:00:14]} O-O {[%emt 0:00:09]} 6. O-O {[%emt 0:00:11]} c6 {[%emt 0:00:24]} 7. c3 {[%emt 0:00:24]} Qc7 {[%emt 0:00:28]} 8. Qc2 {[%emt 0:02:04]} Nbd7 {[%emt 0:00:26]} 9. a4 {[%emt 0:00:40]} e5 {[%emt 0:03:34]} 10. dxe5 {[%emt 0:00:16]} Nxe5 {[%emt 0:00:35]} 11. Nxe5 {[%emt 0:00:11]} dxe5 {[%emt 0:00:05]} 12. a5 {[%emt 0:07:56]} Be6 {[%emt 0:00:29]} 13. Bc4 {[%emt 0:01:10]} Bxc4 {[%emt 0:01:15]} 14. Nxc4 {[%emt 0:02:46]} b5 {[%emt 0:00:10]} 15. axb6 {[%emt 0:00:45]} axb6 {[%emt 0:00:05]} 16. Be3 {[%emt 0:01:08]} b5 {[%emt 0:02:28]} 17. Nd2 {[%emt 0:01:07]} Nd7 {[%emt 0:00:58]} 18. c4 {[%emt 0:03:01]} bxc4 {[%emt 0:01:22]} 19. Qxc4 {[%emt 0:05:00]} Qb7 {[%emt 0:04:11]} 20. b3 {[%emt 0:09:40]} Rfc8 {[%emt 0:00:52]} 21. Ra4 {[%emt 0:10:45]} Nf8 {[%emt 0:11:19]} 22. Rc1 {[%emt 0:14:30]} Ne6 {[%emt 0:04:05]} 23. Rxa8 {[%emt 0:00:32]} Qxa8 {[%emt 0:01:23]} 24. b4 {[%emt 0:00:52]} Rb8 {[%emt 0:02:12]} 25. Qxc6 {[%emt 0:02:08]} Qxc6 {[%emt 0:01:23]} 26. Rxc6 {[%emt 0:00:07]} Rxb4 {[%emt 0:00:04]} 27. Rc8+ {[%emt 0:00:12]} Bf8 {[%emt 0:00:55]} 28. g3 {[%emt 0:05:21]} f6 {[%emt 0:00:50]} 29. f4 {[%emt 0:01:20]} exf4 {[%emt 0:02:43]} 30. gxf4 {[%emt 0:00:07]} Kf7 {[%emt 0:01:22]} 31. f5 {[%emt 0:10:21]} gxf5 {[%emt 0:00:09]} 32. exf5 {[%emt 0:00:06]} Rg4+ {[%emt 0:00:08]} 33. Kf2 {[%emt 0:01:20]} Ng7 {[%emt 0:01:30]} 34. Bh6 {[%emt 0:04:12]} Bd6 {[%emt 0:02:20]} 35. h3 {[%emt 0:06:08]} Rd4 {[%emt 0:05:37]} 36. Nf3 {[%emt 0:03:43]} Rd5 {[%emt 0:00:07]} 37. Bxg7 {[%emt 0:00:31]} Kxg7 {[%emt 0:00:06]} 38. Rc6 {[%emt 0:02:17]} Bc5+ {[%emt 0:01:15]} 39. Kg3 {[%emt 0:01:24]} Rxf5 {[%emt 0:00:12]} 40. Rc7+ {[%emt 0:00:00]} Kh6 {[%emt 0:00:00]} 41. Rc6 {[%emt 0:07:55]} Be7 {[%emt 0:02:56]} 42. Nh4 {[%emt 0:02:15]} Ra5 {[%emt 0:05:25]} 43. Ng2 {[%emt 0:06:23]} Kg5 {[%emt 0:03:36]} 44. h4+ {[%emt 0:03:08]} Kg6 {[%emt 0:03:07]} 45. Kg4 {[%emt 0:01:41]} h5+ {[%emt 0:00:23]} 46. Kf3 {[%emt 0:00:08]} Ra3+ {[%emt 0:00:58]} 47. Ke4 {[%emt 0:01:25]} Ra4+ {[%emt 0:06:35]} 48. Kf3 {[%emt 0:00:06]} Rd4 {[%emt 0:00:32]} 49. Nf4+ {[%emt 0:00:35]} Kf5 {[%emt 0:00:20]} 50. Nxh5 {[%emt 0:00:49]} Rxh4 {[%emt 0:00:05]} 51. Ng3+ {[%emt 0:00:57]} Kg6 {[%emt 0:00:48]} 52. Re6 {[%emt 0:00:27]} Ba3 {[%emt 0:00:46]} 53. Re4 {[%emt 0:01:10]} Rh8 {[%emt 0:00:22]} 54. Rg4+ {[%emt 0:00:17]} Kf7 {[%emt 0:00:05]} 55. Ra4 {[%emt 0:00:37]} Bb2 {[%emt 0:00:36]} 56. Ra7+ {[%emt 0:00:39]} Kg6 {[%emt 0:00:41]} 57. Kg4 {[%emt 0:00:13]} Rb8 {[%emt 0:00:57]} 58. Ra4 {[%emt 0:00:39]} Rb5 {[%emt 0:00:18]} 59. Ne2 {[%emt 0:02:58]} f5+ {[%emt 0:01:00]} 60. Kf3 {[%emt 0:00:07]} Rb3+ {[%emt 0:01:27]} 61. Kg2 {[%emt 0:00:10]} Be5 {[%emt 0:01:46]} 62. Nf4+ {[%emt 0:02:31]} Kg5 {[%emt 0:00:58]} 63. Nh3+ {[%emt 0:00:15]} Kf6 {[%emt 0:00:13]} 64. Ra6+ {[%emt 0:00:14]} Ke7 {[%emt 0:00:05]} 65. Ng1 {[%emt 0:00:16]} Rb2+ {[%emt 0:00:31]} 66. Kf3 {[%emt 0:00:40]} Bc7 {[%emt 0:03:54]} 67. Ne2 {[%emt 0:01:35]} Be5 {[%emt 0:01:43]} 68. Ng1 {[%emt 0:00:44]} Kf7 {[%emt 0:00:16]} 69. Ke3 {[%emt 0:01:27]} Rb3+ {[%emt 0:00:15]} 70. Kd2 {[%emt 0:00:54]} f4 {[%emt 0:00:59]} 71. Rc6 {[%emt 0:03:23]} f3 {[%emt 0:02:37]} 72. Nh3 {[%emt 0:00:17]} Bf6 {[%emt 0:01:21]} 73. Rc4 {[%emt 0:01:31]} Ke6 {[%emt 0:01:29]} 74. Nf4+ {[%emt 0:04:53]} Kf5 {[%emt 0:00:50]} 75. Nd3 {[%emt 0:00:07]} Bg5+ {[%emt 0:01:53]} 76. Kc2 {[%emt 0:00:02]} Rb5 {[%emt 0:00:05]} 77. Rc8 {[%emt 0:02:13]} Kg4 {[%emt 0:01:39]} 78. Kc3 {[%emt 0:01:43]} Rf5 {[%emt 0:03:01]} 79. Rc4+ {[%emt 0:00:31]} Kh3 {[%emt 0:01:54]} 80. Kd4 {[%emt 0:00:33]} Rf8 {[%emt 0:02:46]} 81. Rc7 {[%emt 0:00:25]} Rg8 {[%emt 0:02:15]} 82. Ke4 {[%emt 0:00:17]} Kg3 {[%emt 0:00:07]} 83. Rc3 {[%emt 0:00:22]} Bf6 {[%emt 0:05:53]} 84. Rb3 {[%emt 0:00:54]} Re8+ {[%emt 0:01:59]} 85. Kf5 {[%emt 0:00:01]} Bd4 {[%emt 0:00:05]} 86. Rb4 {[%emt 0:00:40]} Rf8+ {[%emt 0:03:23]} 87. Ke4 {[%emt 0:00:13]} Bc5 {[%emt 0:02:46]} 88. Rb7 {[%emt 0:00:33]} Re8+ {[%emt 0:00:30]} 89. Kf5 {[%emt 0:00:03]} Bd4 {[%emt 0:00:06]} 90. Rb4 {[%emt 0:00:15]} Rd8 {[%emt 0:00:04]} 91. Rb3 {[%emt 0:00:11]} Rf8+ {[%emt 0:03:15]} 92. Ke4 {[%emt 0:00:07]} Bh8 {[%emt 0:00:42]} 93. Rb6 {[%emt 0:00:22]} Rg8 {[%emt 0:00:10]} 94. Rh6 {[%emt 0:00:37]} Ba1 {[%emt 0:01:21]} 95. Ra6 {[%emt 0:00:40]} Bc3 {[%emt 0:00:53]} 96. Rc6 {[%emt 0:00:05]} Bd2 {[%emt 0:00:34]} 97. Rb6 {[%emt 0:01:19]} Rg7 {[%emt 0:02:59]} 98. Rb3 {[%emt 0:00:31]} Bf4 {[%emt 0:03:24]} 99. Ne5 {[%emt 0:00:49]} Bxe5 {[%emt 0:00:04]} 100. Rxf3+ {[%emt 0:00:02]} Kg4 {[%emt 0:00:04]} 101. Rd3 {[%emt 0:00:09]} Re7 {[%emt 0:00:13]} 102. Rd5 {[%emt 0:00:12]} Bf6+ {[%emt 0:00:34]} 103. Kd3 {[%emt 0:00:04]} Kf4 {[%emt 0:00:04]} 104. Rc5 {[%emt 0:00:10]} Rd7+ {[%emt 0:00:31]} 105. Kc4 {[%emt 0:00:07]} Ke4 {[%emt 0:00:09]} 106. Rb5 {[%emt 0:00:17]} Bd4 {[%emt 0:01:16]} 107. Kb3 {[%emt 0:00:10]} Kd3 {[%emt 0:00:06]} 108. Kb4 {[%emt 0:00:16]} Rc7 {[%emt 0:00:17]} 109. Kb3 {[%emt 0:00:31]} Rc4 {[%emt 0:00:52]} 110. Rb7 {[%emt 0:00:19]} Rc1 {[%emt 0:01:08]} 111. Rb5 {[%emt 0:00:09]} Bc5 {[%emt 0:01:36]} 112. Ka4 {[%emt 0:00:26]} Kd4 {[%emt 0:00:24]} 113. Rb3 {[%emt 0:00:42]} Kc4 {[%emt 0:01:10]} 114. Rb4+ {[%emt 0:00:04]} Kd5 {[%emt 0:00:02]} 115. Rb3 {[%emt 0:00:26]} Kc6 {[%emt 0:00:06]} 116. Rd3 {[%emt 0:01:39]} Rb1 {[%emt 0:00:05]} 117. Rc3 {[%emt 0:00:15]} Rb2 {[%emt 0:01:39]} 118. Rc4 {[%emt 0:00:43]} Rb7 {[%emt 0:04:21]} 119. Rc3 {[%emt 0:00:29]} Rb8 {[%emt 0:00:09]} 120. Rc2 {[%emt 0:00:40]} Rb4+ {[%emt 0:02:47]} 121. Ka3 {[%emt 0:00:05]} Kd5 {[%emt 0:00:05]} 122. Rb2 {[%emt 0:01:26]} Rb8+ {[%emt 0:00:38]} 123. Ka2 {[%emt 0:00:04]} Ra8+ {[%emt 0:00:08]} 124. Kb3 {[%emt 0:00:39]} Bd4 {[%emt 0:01:47]} 125. Ra2 {[%emt 0:00:09]} Rb8+ {[%emt 0:01:10]} 126. Kc2 {[%emt 0:00:09]} Ke4 {[%emt 0:00:03]} 127. Kd2 {[%emt 0:00:28]} Rh8 {[%emt 0:01:45]} 128. Rc2 {[%emt 0:00:13]} Rh3 {[%emt 0:00:06]} 129. Ke2 {[%emt 0:00:09]} Bc3 {[%emt 0:00:24]} 130. Kd1 {[%emt 0:00:07]} Rh1+ {[%emt 0:00:50]} 131. Ke2 {[%emt 0:00:02]} Kd4 {[%emt 0:00:06]} 132. Kf3 {[%emt 0:00:07]} Kd3 {[%emt 0:00:05]} 133. Rg2 {[%emt 0:00:07]} Be5 {[%emt 0:00:08]} 134. Kg4 {[%emt 0:00:27]} Rf1 {[%emt 0:00:15]} 135. Kg5 {[%emt 0:00:28]} Bd4 {[%emt 0:00:17]} 136. Rg4 {[%emt 0:00:15]} Kc4 {[%emt 0:00:12]} 137. Rf4 {[%emt 0:00:48]} Re1 {[%emt 0:00:12]} 138. Kf5 {[%emt 0:00:22]} Kd5 {[%emt 0:00:05]} 139. Rg4 {[%emt 0:00:24]} Be5 {[%emt 0:00:15]} 140. Rg2 {[%emt 0:00:28]} Rf1+ {[%emt 0:00:09]} 141. Kg4 {[%emt 0:00:50]} Rf4+ {[%emt 0:00:20]} 142. Kg5 {[%emt 0:00:10]} Ke6 {[%emt 0:00:07]} 143. Rg4 {[%emt 0:00:44]} Rf8 {[%emt 0:00:20]} 144. Kg6 {[%emt 0:00:09]} Bf4 {[%emt 0:00:13]} 145. Kh5 {[%emt 0:00:06]} Rf5+ {[%emt 0:01:15]} 146. Kg6 {[%emt 0:00:13]} Rf6+ {[%emt 0:00:04]} 147. Kg7 {[%emt 0:00:20]} Bh6+ {[%emt 0:00:05]} 148. Kh7 {[%emt 0:00:39]} Kf5 {[%emt 0:00:04]} 149. Rg1 {[%emt 0:01:15]} Re6 {[%emt 0:01:55]} 150. Rg2 {[%emt 0:00:29]} Be3 {[%emt 0:00:38]} 1/2-1/2